[Event "*** Titled Tuesday Blitz"]
[Site "Chess.com"]
[Date "2020.05.12"]
[Round "5"]
[White "SketchyMoves"]
[Black "Zufi1811"]
[Result "1-0"]
[WhiteElo "2637"]
[BlackElo "2457"]
[TimeControl "180+1"]
[EndTime "10:56:09 PDT"]
[Termination "SketchyMoves won on time"]

1. e4 {[%clk 0:03:00.9]} 1... c5 {[%clk 0:02:59.7]} 2. Nc3 {[%clk 0:03:00.8]}
2... Nc6 {[%clk 0:02:59.3]} 3. Bb5 {[%clk 0:03:00.4]} 3... Nd4 {[%clk
0:02:52.5]} 4. Nf3 {[%clk 0:03:00.1]} 4... Nxb5 {[%clk 0:02:51.7]} 5. Nxb5
{[%clk 0:03:01]} 5... d6 {[%clk 0:02:52.3]} 6. d4 {[%clk 0:02:59.3]} 6... a6
{[%clk 0:02:51.8]} 7. Nc3 {[%clk 0:02:59.2]} 7... cxd4 {[%clk 0:02:52.4]} 8.
Qxd4 {[%clk 0:02:59.7]} 8... e5 {[%clk 0:02:50.8]} 9. Qd3 {[%clk 0:02:59.8]}
9... h6 {[%clk 0:02:49.9]} 10. Nd2 {[%clk 0:02:58.7]} 10... Nf6 {[%clk
0:02:49.2]} 11. Nc4 {[%clk 0:02:59.1]} 11... Be6 {[%clk 0:02:45.8]} 12. Ne3
{[%clk 0:02:59.4]} 12... Rc8 {[%clk 0:02:45.9]} 13. O-O {[%clk 0:02:57.4]} 13...
Be7 {[%clk 0:02:45.4]} 14. b3 {[%clk 0:02:57.4]} 14... O-O {[%clk 0:02:45]} 15.
a4 {[%clk 0:02:55.7]} 15... Qc7 {[%clk 0:02:29.9]} 16. Bb2 {[%clk 0:02:51.1]}
16... Rfd8 {[%clk 0:02:27.6]} 17. Rfd1 {[%clk 0:02:48.6]} 17... g6 {[%clk
0:02:27]} 18. Rd2 {[%clk 0:02:46.7]} 18... Qc6 {[%clk 0:02:24]} 19. Rad1 {[%clk
0:02:40.9]} 19... Rd7 {[%clk 0:02:14.5]} 20. h3 {[%clk 0:02:33.5]} 20... Bd8
{[%clk 0:02:14.1]} 21. Ncd5 {[%clk 0:02:32.9]} 21... Bxd5 {[%clk 0:02:12.4]} 22.
Nxd5 {[%clk 0:02:25.5]} 22... Nxd5 {[%clk 0:02:11.9]} 23. exd5 {[%clk 0:02:26]}
23... Qc5 {[%clk 0:02:08.8]} 24. c4 {[%clk 0:02:22.8]} 24... b5 {[%clk
0:02:07.3]} 25. cxb5 {[%clk 0:02:16.3]} 25... axb5 {[%clk 0:02:07.2]} 26. Rc1
{[%clk 0:02:11.4]} 26... Qxc1+ {[%clk 0:02:00.9]} 27. Bxc1 {[%clk 0:02:09.1]}
27... Rxc1+ {[%clk 0:02:01.8]} 28. Rd1 {[%clk 0:02:01.6]} 28... Rxd1+ {[%clk
0:02:00.4]} 29. Qxd1 {[%clk 0:02:02.1]} 29... bxa4 {[%clk 0:02:00.7]} 30. bxa4
{[%clk 0:02:02.3]} 30... Ba5 {[%clk 0:01:52.9]} 31. Qb3 {[%clk 0:01:59.1]} 31...
Kg7 {[%clk 0:01:41]} 32. Qb8 {[%clk 0:01:48]} 32... Rc7 {[%clk 0:01:18.9]} 33.
Kh2 {[%clk 0:01:43.1]} 33... e4 {[%clk 0:01:18.7]} 34. Qb5 {[%clk 0:01:33.7]}
34... Rc5 {[%clk 0:00:58.3]} 35. Qe2 {[%clk 0:01:33.4]} 35... f5 {[%clk
0:00:57.5]} 36. Qa6 {[%clk 0:01:31.9]} 36... Bc7 {[%clk 0:00:51]} 37. Qb7 {[%clk
0:01:26.2]} 37... Kf6 {[%clk 0:00:49.3]} 38. Qb2+ {[%clk 0:01:17.7]} 38... Kf7
{[%clk 0:00:45.5]} 39. Qh8 {[%clk 0:01:12.2]} 39... Ba5 {[%clk 0:00:44.3]} 40.
Qh7+ {[%clk 0:01:03.7]} 40... Kf6 {[%clk 0:00:35.5]} 41. Qg8 {[%clk 0:01:03.3]}
41... Bc7 {[%clk 0:00:27]} 42. a5 {[%clk 0:00:48.2]} 42... Bxa5 {[%clk
0:00:18.3]} 43. Qe6+ {[%clk 0:00:47.1]} 43... Kg7 {[%clk 0:00:11]} 44. Qe7+
{[%clk 0:00:44.8]} 44... Kg8 {[%clk 0:00:10.6]} 45. g4 {[%clk 0:00:38.7]} 45...
fxg4 {[%clk 0:00:07]} 46. hxg4 {[%clk 0:00:38.1]} 46... Bc7 {[%clk 0:00:06.3]}
47. Kg2 {[%clk 0:00:34.9]} 47... Rc4 {[%clk 0:00:02.4]} 48. Kg3 {[%clk
0:00:28.8]} 48... h5 {[%clk 0:00:01.8]} 49. gxh5 {[%clk 0:00:25.8]} 49... gxh5
{[%clk 0:00:02.7]} 50. Kh3 {[%clk 0:00:26.3]} 50... Kh8 {[%clk 0:00:01.2]} 51.
Kh4 {[%clk 0:00:15]} 1-0

[Event "*** Titled Tuesday Blitz"]
[Site "Chess.com"]
[Date "2020.05.12"]
[Round "5"]
[White "Azatnew"]
[Black "Poghosyan_Suren"]
[Result "0-1"]
[WhiteElo "2721"]
[BlackElo "2509"]
[TimeControl "180+1"]
[EndTime "10:56:10 PDT"]
[Termination "Poghosyan_Suren won on time"]

1. Nf3 {[%clk 0:03:00.9]} 1... Nf6 {[%clk 0:02:50.8]} 2. g3 {[%clk 0:03:01.2]}
2... c5 {[%clk 0:02:50.4]} 3. Bg2 {[%clk 0:03:02.1]} 3... Nc6 {[%clk 0:02:51.3]}
4. O-O {[%clk 0:03:02]} 4... g6 {[%clk 0:02:51.4]} 5. c4 {[%clk 0:03:02.9]} 5...
d6 {[%clk 0:02:49.3]} 6. Nc3 {[%clk 0:03:03.1]} 6... Bg7 {[%clk 0:02:48.8]} 7.
d4 {[%clk 0:03:03.4]} 7... cxd4 {[%clk 0:02:48.3]} 8. Nxd4 {[%clk 0:03:04.3]}
8... Bd7 {[%clk 0:02:48.6]} 9. b3 {[%clk 0:03:02.4]} 9... Qc8 {[%clk 0:02:46.5]}
10. Bb2 {[%clk 0:03:01.6]} 10... Bh3 {[%clk 0:02:46.3]} 11. Nd5 {[%clk
0:02:46.3]} 11... Nxd5 {[%clk 0:02:20.8]} 12. cxd5 {[%clk 0:02:47.2]} 12... Ne5
{[%clk 0:02:20.8]} 13. Rc1 {[%clk 0:02:44]} 13... Qd7 {[%clk 0:02:19.7]} 14. Ne6
{[%clk 0:01:15.5]} 14... Bxe6 {[%clk 0:02:12]} 15. dxe6 {[%clk 0:01:15.4]} 15...
fxe6 {[%clk 0:02:10.4]} 16. f4 {[%clk 0:00:55.9]} 16... Nf3+ {[%clk 0:02:09.2]}
17. exf3 {[%clk 0:00:56.2]} 17... Bxb2 {[%clk 0:02:10]} 18. Rc2 {[%clk
0:00:56.4]} 18... Bf6 {[%clk 0:01:49.5]} 19. Bh3 {[%clk 0:00:56]} 19... O-O
{[%clk 0:01:40.5]} 20. Qe2 {[%clk 0:00:55.2]} 20... Kg7 {[%clk 0:01:39.4]} 21.
Bxe6 {[%clk 0:00:54.4]} 21... Qd8 {[%clk 0:01:37.8]} 22. Rfc1 {[%clk 0:00:54.8]}
22... Qb6+ {[%clk 0:01:36.7]} 23. Kg2 {[%clk 0:00:55]} 23... Rad8 {[%clk
0:01:30]} 24. Rc7 {[%clk 0:00:53.8]} 24... d5 {[%clk 0:01:27.4]} 25. Bh3 {[%clk
0:00:20.3]} 25... d4 {[%clk 0:01:18]} 26. Qd3 {[%clk 0:00:20.6]} 26... Rd6
{[%clk 0:01:15.3]} 27. R7c4 {[%clk 0:00:14.2]} 27... Qa5 {[%clk 0:01:04.6]} 28.
R4c2 {[%clk 0:00:13.3]} 28... Qa6 {[%clk 0:01:01.1]} 29. Qxa6 {[%clk 0:00:11.1]}
29... Rxa6 {[%clk 0:01:02]} 30. Rd2 {[%clk 0:00:10.5]} 30... Rd8 {[%clk
0:01:00.6]} 31. Kf2 {[%clk 0:00:10.3]} 31... d3 {[%clk 0:00:47.3]} 32. Rc4
{[%clk 0:00:10.1]} 32... b5 {[%clk 0:00:45.5]} 33. Rc7 {[%clk 0:00:09.9]} 33...
Bd4+ {[%clk 0:00:43]} 34. Kf1 {[%clk 0:00:08.8]} 34... Kf6 {[%clk 0:00:39.3]}
35. Rxd3 {[%clk 0:00:07.4]} 35... Rxa2 {[%clk 0:00:38.7]} 36. Rc6+ {[%clk
0:00:07.8]} 36... Kg7 {[%clk 0:00:35.6]} 37. Re6 {[%clk 0:00:04.1]} 37... Rf2+
{[%clk 0:00:27.1]} 38. Ke1 {[%clk 0:00:04.4]} 38... Rxh2 {[%clk 0:00:25.4]} 39.
Bf1 {[%clk 0:00:04.4]} 39... b4 {[%clk 0:00:22.8]} 40. Rxe7+ {[%clk 0:00:04.3]}
40... Kf6 {[%clk 0:00:22.6]} 41. Rxa7 {[%clk 0:00:02.5]} 41... Bc3+ {[%clk
0:00:22.7]} 42. Kd1 {[%clk 0:00:02.7]} 42... Rxd3+ {[%clk 0:00:21.4]} 43. Bxd3
{[%clk 0:00:03.6]} 43... Rd2+ {[%clk 0:00:21.7]} 44. Kc1 {[%clk 0:00:04.3]}
44... Rxd3 {[%clk 0:00:22.6]} 45. Rxh7 {[%clk 0:00:04.9]} 45... Rxf3 {[%clk
0:00:22.7]} 46. g4 {[%clk 0:00:02.5]} 46... Rxf4 {[%clk 0:00:22.3]} 0-1

[Event "*** Titled Tuesday Blitz"]
[Site "Chess.com"]
[Date "2020.05.12"]
[Round "5"]
[White "mshuaau0"]
[Black "UmutErdemGunduz"]
[Result "0-1"]
[WhiteElo "2177"]
[BlackElo "2396"]
[TimeControl "180+1"]
[EndTime "10:56:10 PDT"]
[Termination "UmutErdemGunduz won by resignation"]

1. e4 {[%clk 0:03:00.9]} 1... e5 {[%clk 0:02:57.6]} 2. Nf3 {[%clk 0:03:00.7]}
2... Nc6 {[%clk 0:02:57.5]} 3. Bc4 {[%clk 0:03:00.9]} 3... Bc5 {[%clk
0:02:56.3]} 4. Nc3 {[%clk 0:03:00.2]} 4... Nf6 {[%clk 0:02:56.5]} 5. d3 {[%clk
0:02:59.9]} 5... O-O {[%clk 0:02:56.5]} 6. Bg5 {[%clk 0:02:55.8]} 6... h6 {[%clk
0:02:55.2]} 7. Bh4 {[%clk 0:02:54.5]} 7... d6 {[%clk 0:02:39.6]} 8. Nd5 {[%clk
0:02:52.2]} 8... g5 {[%clk 0:02:39.2]} 9. Nxg5 {[%clk 0:01:49]} 9... Nxd5 {[%clk
0:02:37.8]} 10. Bxd5 {[%clk 0:01:40]} 10... hxg5 {[%clk 0:02:35.2]} 11. Qh5
{[%clk 0:01:38.8]} 11... Qf6 {[%clk 0:01:28]} 12. Bxg5 {[%clk 0:01:30.4]} 12...
Qg7 {[%clk 0:00:23.8]} 13. Bh6 {[%clk 0:00:27.3]} 13... Qg4 {[%clk 0:00:10.5]}
14. Qxg4+ {[%clk 0:00:27.6]} 14... Bxg4 {[%clk 0:00:11.4]} 15. Bxf8 {[%clk
0:00:28.1]} 15... Rxf8 {[%clk 0:00:11.9]} 16. f3 {[%clk 0:00:28.2]} 16... Be6
{[%clk 0:00:11.6]} 17. Bxe6 {[%clk 0:00:27.1]} 17... fxe6 {[%clk 0:00:12.5]} 18.
c3 {[%clk 0:00:27.2]} 18... d5 {[%clk 0:00:12.7]} 19. Ke2 {[%clk 0:00:27]} 19...
Kf7 {[%clk 0:00:09.7]} 20. h4 {[%clk 0:00:26.9]} 20... Ne7 {[%clk 0:00:07]} 21.
b4 {[%clk 0:00:24.6]} 21... Bd6 {[%clk 0:00:06.3]} 22. h5 {[%clk 0:00:23.3]}
22... c6 {[%clk 0:00:06]} 23. g4 {[%clk 0:00:23]} 23... Kf6 {[%clk 0:00:05.5]}
24. h6 {[%clk 0:00:21.2]} 24... Ng6 {[%clk 0:00:05]} 25. Rh5 {[%clk 0:00:21.2]}
25... Nf4+ {[%clk 0:00:04.8]} 26. Ke3 {[%clk 0:00:22]} 26... Nxh5 {[%clk
0:00:05.7]} 27. gxh5 {[%clk 0:00:22.9]} 27... Rh8 {[%clk 0:00:03.8]} 28. Rg1
{[%clk 0:00:23.3]} 28... Rxh6 {[%clk 0:00:03.3]} 29. Rh1 {[%clk 0:00:23.4]}
29... d4+ {[%clk 0:00:02]} 30. cxd4 {[%clk 0:00:23]} 30... Bxb4 {[%clk
0:00:02.2]} 31. dxe5+ {[%clk 0:00:22.3]} 31... Kxe5 {[%clk 0:00:03.1]} 32. f4+
{[%clk 0:00:22.7]} 32... Kf6 {[%clk 0:00:03.5]} 33. Kf3 {[%clk 0:00:22.4]} 33...
e5 {[%clk 0:00:03.6]} 34. fxe5+ {[%clk 0:00:19.2]} 34... Kxe5 {[%clk 0:00:03.4]}
35. Kg4 {[%clk 0:00:20.1]} 35... Bd2 {[%clk 0:00:02.9]} 36. Rh2 {[%clk
0:00:18.6]} 36... Be3 {[%clk 0:00:02.9]} 37. Rh3 {[%clk 0:00:17.8]} 37... Kd4
{[%clk 0:00:03.8]} 38. Rf3 {[%clk 0:00:14.1]} 38... Kxd3 {[%clk 0:00:03.7]} 39.
e5 {[%clk 0:00:14.4]} 39... Ke4 {[%clk 0:00:04.3]} 40. Rxe3+ {[%clk 0:00:14]}
40... Kxe3 {[%clk 0:00:03.9]} 41. Kg5 {[%clk 0:00:14.9]} 41... Rh8 {[%clk
0:00:03.7]} 42. e6 {[%clk 0:00:15.3]} 42... Ke4 {[%clk 0:00:03.6]} 43. Kf6
{[%clk 0:00:15.6]} 43... Rxh5 {[%clk 0:00:02.6]} 44. e7 {[%clk 0:00:16.1]} 44...
Re5 {[%clk 0:00:02.5]} 45. Kf7 {[%clk 0:00:15.8]} 45... c5 {[%clk 0:00:02.7]}
46. e8=Q {[%clk 0:00:15.9]} 46... Rxe8 {[%clk 0:00:03.6]} 47. Kxe8 {[%clk
0:00:16.8]} 47... c4 {[%clk 0:00:04.5]} 48. Kd7 {[%clk 0:00:17.7]} 48... c3
{[%clk 0:00:05.4]} 49. Kc7 {[%clk 0:00:18.6]} 49... c2 {[%clk 0:00:06.3]} 50.
Kxb7 {[%clk 0:00:19.5]} 50... c1=Q {[%clk 0:00:07.2]} 51. a4 {[%clk 0:00:20.4]}
51... Qa3 {[%clk 0:00:07.2]} 52. a5 {[%clk 0:00:21.3]} 52... Qxa5 {[%clk
0:00:07.4]} 0-1

[Event "*** Titled Tuesday Blitz"]
[Site "Chess.com"]
[Date "2020.05.12"]
[Round "5"]
[White "Evgeny81"]
[Black "SCIM"]
[Result "1-0"]
[WhiteElo "2712"]
[BlackElo "2551"]
[TimeControl "180+1"]
[EndTime "10:56:11 PDT"]
[Termination "Evgeny81 won by resignation"]

1. d4 {[%clk 0:03:00.9]} 1... Nf6 {[%clk 0:03:00.4]} 2. c4 {[%clk 0:03:01]} 2...
g6 {[%clk 0:03:00.3]} 3. Nc3 {[%clk 0:03:00.6]} 3... d5 {[%clk 0:03:00.7]} 4.
Nf3 {[%clk 0:02:54.6]} 4... Bg7 {[%clk 0:03:00.1]} 5. cxd5 {[%clk 0:02:54.9]}
5... Nxd5 {[%clk 0:02:59.9]} 6. e4 {[%clk 0:02:55.1]} 6... Nxc3 {[%clk
0:02:59.9]} 7. bxc3 {[%clk 0:02:55.7]} 7... c5 {[%clk 0:03:00.8]} 8. Be3 {[%clk
0:02:49.3]} 8... O-O {[%clk 0:03:00.1]} 9. Be2 {[%clk 0:02:47.6]} 9... Bg4
{[%clk 0:02:51.8]} 10. O-O {[%clk 0:02:44.1]} 10... cxd4 {[%clk 0:02:31.1]} 11.
cxd4 {[%clk 0:02:43.1]} 11... Nc6 {[%clk 0:02:31.6]} 12. e5 {[%clk 0:02:39.8]}
12... Rc8 {[%clk 0:02:21.9]} 13. h3 {[%clk 0:02:34.6]} 13... Bxf3 {[%clk
0:02:20.8]} 14. Bxf3 {[%clk 0:02:35.2]} 14... Qa5 {[%clk 0:02:05]} 15. Qb3
{[%clk 0:02:31.6]} 15... Qa6 {[%clk 0:01:32.1]} 16. Rab1 {[%clk 0:02:16.1]}
16... b6 {[%clk 0:01:30.8]} 17. Bxc6 {[%clk 0:01:55.4]} 17... Rxc6 {[%clk
0:01:31.7]} 18. d5 {[%clk 0:01:55.6]} 18... Rc4 {[%clk 0:01:30.3]} 19. e6 {[%clk
0:01:52.5]} 19... fxe6 {[%clk 0:01:27.9]} 20. dxe6 {[%clk 0:01:52.8]} 20... Ra4
{[%clk 0:01:22.4]} 21. Rfd1 {[%clk 0:01:42.2]} 21... Rxa2 {[%clk 0:01:17]} 22.
Rd7 {[%clk 0:01:41.5]} 22... Bf6 {[%clk 0:01:07.1]} 23. Qd5 {[%clk 0:01:35.8]}
23... Bh4 {[%clk 0:01:00.1]} 24. Rd8 {[%clk 0:01:21]} 24... Bxf2+ {[%clk
0:00:58.8]} 25. Kh1 {[%clk 0:01:17.9]} 25... Bxe3 {[%clk 0:00:40.2]} 26. Rxf8+
{[%clk 0:01:17.5]} 26... Kxf8 {[%clk 0:00:40.7]} 27. Qd8+ {[%clk 0:01:11.1]}
27... Kg7 {[%clk 0:00:40.3]} 28. Qxe7+ {[%clk 0:01:11.2]} 28... Kh6 {[%clk
0:00:40.5]} 29. Qf8+ {[%clk 0:01:04.1]} 29... Kg5 {[%clk 0:00:36.6]} 30. e7
{[%clk 0:00:48]} 30... Ra1 {[%clk 0:00:28.4]} 31. h4+ {[%clk 0:00:48.1]} 31...
Kxh4 {[%clk 0:00:20.3]} 32. Qf6+ {[%clk 0:00:48.2]} 32... Bg5 {[%clk 0:00:13.1]}
33. Qd4+ {[%clk 0:00:20.7]} 33... Kh5 {[%clk 0:00:09.8]} 34. Qd1+ {[%clk
0:00:20.4]} 34... Kh6 {[%clk 0:00:05.4]} 35. Rxa1 {[%clk 0:00:20.7]} 35... Qb5
{[%clk 0:00:04.7]} 36. Qe1 {[%clk 0:00:17.3]} 36... Bxe7 {[%clk 0:00:01.9]} 37.
Qxe7 {[%clk 0:00:15.8]} 37... Qh5+ {[%clk 0:00:02.5]} 38. Kg1 {[%clk 0:00:15.6]}
38... a5 {[%clk 0:00:03.3]} 39. Qf8+ {[%clk 0:00:15.2]} 39... Kg5 {[%clk
0:00:03.7]} 40. Rf1 {[%clk 0:00:14.8]} 40... Qg4 {[%clk 0:00:03.1]} 41. Qd8+
{[%clk 0:00:13.4]} 41... Kh5 {[%clk 0:00:03]} 42. Qxb6 {[%clk 0:00:13.5]} 42...
a4 {[%clk 0:00:02.2]} 43. Qc5+ {[%clk 0:00:13.6]} 43... g5 {[%clk 0:00:02.2]}
44. Qf5 {[%clk 0:00:12.6]} 44... Qd4+ {[%clk 0:00:01.8]} 45. Kh2 {[%clk
0:00:12.1]} 45... Qh4+ {[%clk 0:00:02.7]} 46. Qh3 {[%clk 0:00:11.5]} 46... Qxh3+
{[%clk 0:00:03.2]} 47. Kxh3 {[%clk 0:00:11.6]} 47... Kg6 {[%clk 0:00:03.7]} 48.
Ra1 {[%clk 0:00:10.5]} 48... h5 {[%clk 0:00:04.6]} 49. Rxa4 {[%clk 0:00:11.1]}
1-0

[Event "*** Titled Tuesday Blitz"]
[Site "Chess.com"]
[Date "2020.05.12"]
[Round "5"]
[White "katchesskat"]
[Black "chess94cu"]
[Result "1-0"]
[WhiteElo "2267"]
[BlackElo "2452"]
[TimeControl "180+1"]
[EndTime "10:56:12 PDT"]
[Termination "katchesskat won by resignation"]

1. c4 {[%clk 0:03:00.9]} 1... Nf6 {[%clk 0:02:57.2]} 2. e3 {[%clk 0:02:59.3]}
2... e6 {[%clk 0:02:57.2]} 3. a3 {[%clk 0:02:58.9]} 3... d5 {[%clk 0:02:57.3]}
4. Qc2 {[%clk 0:02:58.5]} 4... Be7 {[%clk 0:02:56.2]} 5. Nf3 {[%clk 0:02:58.6]}
5... O-O {[%clk 0:02:55.9]} 6. Be2 {[%clk 0:02:53]} 6... c5 {[%clk 0:02:55.2]}
7. b3 {[%clk 0:02:53]} 7... b6 {[%clk 0:02:54.6]} 8. Bb2 {[%clk 0:02:52.6]} 8...
Bb7 {[%clk 0:02:55.1]} 9. d3 {[%clk 0:02:53.1]} 9... Nbd7 {[%clk 0:02:55.5]} 10.
Nbd2 {[%clk 0:02:53.8]} 10... Rc8 {[%clk 0:02:44.8]} 11. O-O {[%clk 0:02:52.8]}
11... Qc7 {[%clk 0:02:44.6]} 12. Rfe1 {[%clk 0:02:52.8]} 12... Rfd8 {[%clk
0:02:43]} 13. h3 {[%clk 0:02:52.8]} 13... Qb8 {[%clk 0:02:38.9]} 14. Rac1 {[%clk
0:02:47.8]} 14... a6 {[%clk 0:02:33.1]} 15. Qb1 {[%clk 0:02:46.3]} 15... Qa8
{[%clk 0:02:31.2]} 16. Bf1 {[%clk 0:02:45.5]} 16... b5 {[%clk 0:02:24.5]} 17.
Qc2 {[%clk 0:02:42.7]} 17... Qb8 {[%clk 0:02:19.7]} 18. Be2 {[%clk 0:02:41.8]}
18... Re8 {[%clk 0:02:15.5]} 19. Rb1 {[%clk 0:02:40.2]} 19... Bf8 {[%clk
0:02:13.7]} 20. Rbc1 {[%clk 0:02:38.2]} 20... e5 {[%clk 0:02:12.8]} 21. cxd5
{[%clk 0:02:38.1]} 21... Bxd5 {[%clk 0:02:10.9]} 22. Qb1 {[%clk 0:02:33.2]}
22... Qa8 {[%clk 0:02:09.3]} 23. Qa1 {[%clk 0:02:30.1]} 23... e4 {[%clk
0:01:54.7]} 24. dxe4 {[%clk 0:02:25.5]} 24... Nxe4 {[%clk 0:01:55.6]} 25. Nxe4
{[%clk 0:02:17.9]} 25... Bxe4 {[%clk 0:01:56.5]} 26. Red1 {[%clk 0:02:18.1]}
26... Nb6 {[%clk 0:01:54.8]} 27. a4 {[%clk 0:01:55]} 27... b4 {[%clk 0:01:53.2]}
28. a5 {[%clk 0:01:54.4]} 28... Nd5 {[%clk 0:01:43.3]} 29. Ng5 {[%clk
0:01:31.3]} 29... Bxg2 {[%clk 0:01:40.9]} 30. Qb1 {[%clk 0:00:40.4]} 30... g6
{[%clk 0:01:39.3]} 31. Bc4 {[%clk 0:00:34.8]} 31... h6 {[%clk 0:01:34.7]} 32.
Nxf7 {[%clk 0:00:29]} 32... Be4 {[%clk 0:01:28.3]} 33. Bd3 {[%clk 0:00:17.1]}
33... Nc3 {[%clk 0:01:14.8]} 34. Bxc3 {[%clk 0:00:12.9]} 34... bxc3 {[%clk
0:01:14.1]} 35. Bxe4 {[%clk 0:00:06.3]} 35... Qxe4 {[%clk 0:00:59.2]} 36. Qxe4
{[%clk 0:00:05.3]} 36... Rxe4 {[%clk 0:01:00.1]} 37. Nd6 {[%clk 0:00:05.6]}
37... Bxd6 {[%clk 0:00:58]} 38. Rxd6 {[%clk 0:00:06.5]} 38... Kg7 {[%clk
0:00:58.4]} 39. Rxc3 {[%clk 0:00:06.6]} 39... Rb4 {[%clk 0:00:58.7]} 40. Rxa6
{[%clk 0:00:06.2]} 40... Rcb8 {[%clk 0:00:58.6]} 41. Rxc5 {[%clk 0:00:05.2]}
41... R8b7 {[%clk 0:00:57.6]} 42. Rcc6 {[%clk 0:00:04.6]} 42... Rxb3 {[%clk
0:00:53.7]} 43. Rxg6+ {[%clk 0:00:04.7]} 43... Kf7 {[%clk 0:00:53.9]} 44. Rxh6
{[%clk 0:00:05.1]} 44... R3b5 {[%clk 0:00:52.5]} 45. Rh7+ {[%clk 0:00:03.1]}
45... Kg8 {[%clk 0:00:53.1]} 46. Rxb7 {[%clk 0:00:03.2]} 46... Rxb7 {[%clk
0:00:53.9]} 47. Rb6 {[%clk 0:00:03.6]} 47... Rc7 {[%clk 0:00:53.6]} 48. a6
{[%clk 0:00:03.7]} 48... Rc1+ {[%clk 0:00:54.5]} 49. Kg2 {[%clk 0:00:03.7]}
49... Ra1 {[%clk 0:00:55.4]} 50. Kf3 {[%clk 0:00:04.1]} 50... Kf7 {[%clk
0:00:55.5]} 51. Kf4 {[%clk 0:00:04.5]} 51... Ke7 {[%clk 0:00:55.3]} 52. f3
{[%clk 0:00:04.9]} 52... Ra4+ {[%clk 0:00:55.7]} 53. e4 {[%clk 0:00:05.2]} 53...
Ra5 {[%clk 0:00:56]} 54. e5 {[%clk 0:00:05.4]} 54... Kf7 {[%clk 0:00:55.2]} 55.
Kf5 {[%clk 0:00:05.4]} 55... Ra3 {[%clk 0:00:55.7]} 56. f4 {[%clk 0:00:05.7]}
56... Ra4 {[%clk 0:00:54.6]} 57. Rb7+ {[%clk 0:00:06.2]} 57... Ke8 {[%clk
0:00:54.9]} 58. a7 {[%clk 0:00:06.6]} 58... Kf8 {[%clk 0:00:51.2]} 59. Rb8+
{[%clk 0:00:07]} 59... Kf7 {[%clk 0:00:51.9]} 60. a8=Q {[%clk 0:00:07.5]} 1-0

[Event "*** Titled Tuesday Blitz"]
[Site "Chess.com"]
[Date "2020.05.12"]
[Round "5"]
[White "MartinMatthiesen"]
[Black "DDTerziev04"]
[Result "1-0"]
[WhiteElo "2408"]
[BlackElo "2273"]
[TimeControl "180+1"]
[EndTime "10:56:12 PDT"]
[Termination "MartinMatthiesen won by checkmate"]

1. d4 {[%clk 0:03:00.9]} 1... d5 {[%clk 0:02:59.4]} 2. c4 {[%clk 0:02:51.5]}
2... dxc4 {[%clk 0:03:00.3]} 3. Nf3 {[%clk 0:02:50.2]} 3... Nf6 {[%clk
0:02:59.6]} 4. e3 {[%clk 0:02:50.1]} 4... e6 {[%clk 0:02:59.7]} 5. Bxc4 {[%clk
0:02:48.8]} 5... a6 {[%clk 0:03:00.2]} 6. O-O {[%clk 0:02:41.9]} 6... b5 {[%clk
0:02:59.8]} 7. Be2 {[%clk 0:02:39.8]} 7... Bb7 {[%clk 0:02:58.9]} 8. a4 {[%clk
0:02:37.4]} 8... b4 {[%clk 0:02:58.6]} 9. a5 {[%clk 0:02:25.9]} 9... Nbd7 {[%clk
0:02:52.4]} 10. b3 {[%clk 0:02:15.4]} 10... c5 {[%clk 0:02:49.8]} 11. Bb2 {[%clk
0:02:13.8]} 11... Be7 {[%clk 0:02:49.2]} 12. Nbd2 {[%clk 0:02:12.6]} 12... O-O
{[%clk 0:02:36.3]} 13. Nc4 {[%clk 0:02:10.5]} 13... Bd5 {[%clk 0:02:35.6]} 14.
Nfd2 {[%clk 0:01:52.7]} 14... cxd4 {[%clk 0:02:08.9]} 15. Bxd4 {[%clk
0:01:51.3]} 15... Bc5 {[%clk 0:01:33.8]} 16. Bxc5 {[%clk 0:01:46.3]} 16... Nxc5
{[%clk 0:01:34.7]} 17. Nb6 {[%clk 0:01:45]} 17... Rb8 {[%clk 0:01:28.7]} 18. Rc1
{[%clk 0:01:30.6]} 18... Qe7 {[%clk 0:01:24.7]} 19. f3 {[%clk 0:01:21.8]} 19...
e5 {[%clk 0:00:58.3]} 20. Qc2 {[%clk 0:01:10.9]} 20... Nb7 {[%clk 0:00:43]} 21.
Bxa6 {[%clk 0:00:33.5]} 21... Nxa5 {[%clk 0:00:29.2]} 22. Nxd5 {[%clk
0:00:32.2]} 22... Nxd5 {[%clk 0:00:26.3]} 23. Qc5 {[%clk 0:00:32.5]} 23... Qd8
{[%clk 0:00:13.8]} 24. Rfd1 {[%clk 0:00:26.5]} 24... Nc3 {[%clk 0:00:13.4]} 25.
Bc4 {[%clk 0:00:14]} 25... Nxd1 {[%clk 0:00:11.4]} 26. Rxd1 {[%clk 0:00:14.3]}
26... Nxc4 {[%clk 0:00:08.1]} 27. Qxc4 {[%clk 0:00:14]} 27... Qe7 {[%clk
0:00:07]} 28. Qe2 {[%clk 0:00:14.1]} 28... Rfd8 {[%clk 0:00:06.5]} 29. Rc1
{[%clk 0:00:14.4]} 29... Rbc8 {[%clk 0:00:06.6]} 30. Nc4 {[%clk 0:00:14.7]}
30... e4 {[%clk 0:00:06]} 31. f4 {[%clk 0:00:14.6]} 31... Qe6 {[%clk 0:00:03.7]}
32. Rb1 {[%clk 0:00:14.5]} 32... f5 {[%clk 0:00:03.8]} 33. h3 {[%clk 0:00:14.5]}
33... Rd3 {[%clk 0:00:03.9]} 34. Qc2 {[%clk 0:00:12.7]} 34... Rc3 {[%clk
0:00:04]} 35. Qd2 {[%clk 0:00:12.3]} 35... Rd3 {[%clk 0:00:03.9]} 36. Qc2 {[%clk
0:00:12.6]} 36... Rcd8 {[%clk 0:00:04.3]} 37. Ra1 {[%clk 0:00:10.8]} 37... Rc3
{[%clk 0:00:04.4]} 38. Qb2 {[%clk 0:00:10.2]} 38... Rdd3 {[%clk 0:00:04.3]} 39.
Ra8+ {[%clk 0:00:08.3]} 39... Kf7 {[%clk 0:00:04.6]} 40. Nd2 {[%clk 0:00:08.4]}
40... Rxe3 {[%clk 0:00:04]} 41. Ra7+ {[%clk 0:00:06.4]} 41... Kg6 {[%clk
0:00:03.3]} 42. Nf1 {[%clk 0:00:06.7]} 42... Red3 {[%clk 0:00:02.9]} 43. Qf2
{[%clk 0:00:06.2]} 43... Kh6 {[%clk 0:00:01.1]} 44. Qh4+ {[%clk 0:00:05.1]}
44... Kg6 {[%clk 0:00:02]} 45. Qg5# {[%clk 0:00:05.3]} 1-0